bitfinex/quotes_ETHUSD_20251220
["timestamp","ask_amount","ask_price","bid_price","bid_amount"]
[1766188801291,0.002,2983.4,2983.0,0.5309]
[1766188802893,1.0382,2983.4,2983.0,0.5309]
[1766188804724,1.598,2983.4,2983.0,0.5309]
[1766188805291,1.0396,2983.3,2983.0,0.001]
[1766188805593,1.5994,2983.3,2983.0,0.001]
[1766188810435,0.002,2983.4,2983.0,0.001]
[1766188810827,0.002,2983.4,2983.0,1.6771]
[1766188811849,0.002,2983.5,2983.3,1.6761]
[1766188812215,0.002,2983.5,2983.3,0.5688]
[1766188812420,0.002,2983.4,2983.1,1.6761]
[1766188812641,0.002,2983.4,2983.2,1.00716936]
[1766188812846,0.002,2983.4,2983.2,1.30244004]
[1766188813419,0.002,2984.2,2983.4,0.5688]
[1766188813618,0.002,2984.2,2983.6,0.5688]
[1766188813829,0.002,2984.2,2983.7,1.6761]
[1766188814519,1.0416,2984.2,2983.7,1.6761]
[1766188814743,1.08512557,2984.2,2983.7,1.6761]
[1766188815046,2.6519766,2984.2,2983.7,1.6761]
[1766188815922,1.0416,2984.1,2983.7,0.5688]
[1766188816318,1.6014,2984.1,2983.7,0.5688]
[1766188817162,1.0396,2983.9,2983.0,0.5698]
[1766188817329,1.5994,2983.2,2982.6,0.001]
[1766188817651,1.00736213,2983.1,2982.7,1.6761]
[1766188818221,1.00736213,2983.1,2982.6,0.001]
[1766188818432,1.00736213,2983.1,2982.8,1.6761]
[1766188818833,1.00736213,2983.1,2982.8,1.09994063]
[1766188819316,0.441,2983.4,2982.8,1.09994063]
[1766188820145,0.441,2983.4,2982.8,0.44536152]
[1766188820357,0.441,2983.4,2983.0,0.001]
[1766188820858,0.441,2983.4,2983.0,1.6771]
[1766188821940,0.441,2983.4,2983.0,0.001]
[1766188821941,1.5994,2983.3,2983.0,0.001]
[1766188823362,1.43046592,2983.3,2983.0,0.001]
[1766188825330,1.43046592,2983.3,2983.0,1.00828434]
[1766188826041,1.5994,2983.3,2983.0,1.00828434]
[1766188826242,0.5598,2983.2,2983.0,1.00828434]
[1766188826664,1.5994,2983.2,2983.0,1.00828434]
[1766188827563,1.5994,2983.1,2983.0,0.001]
[1766188829057,0.5539,2983.0,2982.6,0.001]
[1766188829263,1.5634,2982.9,2982.6,0.001]
[1766188830959,1.5634,2983.1,2982.6,0.001]
[1766188831164,3.35211436,2983.2,2982.6,0.001]
[1766188831343,1.5634,2983.1,2982.6,0.001]
[1766188831532,3.35211436,2983.2,2982.6,0.001]
[1766188831863,4.20548979,2983.2,2982.6,0.001]
[1766188832063,1.0095,2982.9,2982.5,1.00841287]
[1766188832357,1.5634,2982.5,2982.0,1.54627715]
[1766188832658,1.5634,2982.5,2982.1,0.19872772]
[1766188832828,1.5634,2982.7,2982.2,0.5388]
[1766188833027,1.5634,2982.7,2982.2,1.5387]
[1766188833231,0.441,2982.9,2982.4,1.5387]
[1766188833464,1.0095,2983.1,2982.5,0.5388]
[1766188833651,0.5539,2983.2,2982.7,0.9999]
[1766188833853,0.5539,2983.2,2982.7,0.5388]
[1766188834032,1.4505,2983.3,2982.8,0.9999]
[1766188834366,1.9933,2983.3,2982.8,0.9999]
[1766188834782,0.5428,2983.2,2982.8,0.9999]
[1766188836167,0.441,2983.3,2982.6,1.00739596]
[1766188836361,0.441,2983.3,2982.9,1.5565]
[1766188836662,1.5734,2983.2,2982.7,1.0061]
[1766188836870,0.5428,2983.1,2982.7,1.0061]
[1766188837863,0.5428,2983.1,2982.8,1.00735537]
[1766188841769,0.5428,2983.1,2982.8,1.00835537]
[1766188842161,0.5428,2982.9,2982.5,0.001]
[1766188842341,1.5734,2982.8,2982.5,0.001]
[1766188843271,2.5795,2982.8,2982.5,0.001]
[1766188844865,1.5734,2982.8,2982.5,0.001]
[1766188845066,2.58082979,2982.8,2982.5,0.001]
[1766188845264,1.5734,2982.8,2982.5,0.001]
[1766188846959,0.5428,2982.8,2982.5,0.001]
[1766188847981,1.0306,2982.8,2982.1,1.0061]
[1766188848163,1.0306,2982.7,2982.1,1.0061]
[1766188848348,0.5428,2982.6,2982.1,1.0061]
[1766188848546,0.5428,2982.6,2982.5,0.001]
[1766188849162,1.0306,2982.7,2982.5,0.001]
[1766188849364,0.5428,2982.8,2982.5,0.001]
[1766188853760,1.5734,2982.7,2982.5,0.001]
[1766188853959,0.74424,2983.1,2982.5,1.0071]
[1766188854190,0.441,2982.9,2982.5,1.0071]
[1766188854655,0.9838,2982.9,2982.5,1.0071]
[1766188855067,2.0144,2982.9,2982.5,1.0071]
[1766188856463,0.9838,2982.9,2982.5,1.0071]
[1766188856887,0.9838,2982.9,2982.5,1.5575]
[1766188857264,0.441,2982.9,2982.5,1.5575]
[1766188857466,0.441,2982.9,2982.6,1.0061]
[1766188857788,0.002,2983.2,2982.7,0.5504]
[1766188858094,0.002,2983.2,2982.9,1.5565]
[1766188858587,0.002,2983.2,2982.9,1.0061]
[1766188858965,0.002,2983.2,2982.7,0.5504]
[1766188859165,1.0326,2983.2,2982.5,0.001]
[1766188859373,1.0306,2983.1,2982.5,1.0071]
[1766188859593,0.5428,2983.0,2982.5,0.001]
[1766188859784,1.5734,2982.8,2982.5,0.001]
[1766188860093,1.0306,2982.8,2982.5,0.001]
[1766188860290,0.5428,2982.7,2982.5,0.001]
[1766188860678,0.5428,2982.9,2982.5,0.001]
[1766188862478,0.441,2983.0,2982.5,1.5575]
[1766188862670,0.441,2983.0,2982.6,1.0061]
[1766188863394,2.0144,2983.0,2982.5,0.5514]
[1766188863592,0.5428,2982.9,2982.5,0.001]
[1766188864298,0.5428,2982.9,2982.5,1.0411]
[1766188864495,0.002,2983.2,2982.7,1.0401]
[1766188864695,0.002,2983.2,2982.9,1.6007]
[1766188864895,0.002,2983.2,2982.5,0.442]
[1766188865196,1.6788,2983.1,2982.6,1.0401]
[1766188865806,0.002,2982.9,2982.6,1.0401]
[1766188867371,0.002,2982.9,2982.5,0.001]
[1766188867675,0.002,2982.9,2982.5,0.5616]
[1766188867874,0.002,2982.9,2982.6,1.0401]
[1766188869512,0.002,2982.9,2982.6,1.6007]
[1766188869710,0.002,2982.9,2982.6,0.5606]
[1766188870007,0.002,2982.9,2982.7,1.0401]
[1766188871205,0.002,2983.2,2982.5,0.001]
[1766188871693,0.002,2983.2,2982.6,1.6007]
[1766188872014,0.002,2983.2,2982.9,1.0401]
[1766188872911,0.443,2983.4,2983.1,1.0401]
[1766188873208,0.002,2983.4,2983.2,1.0401]
[1766188873380,1.027,2983.7,2983.3,1.0401]
[1766188874506,0.441,2983.7,2983.3,1.0401]
[1766188874709,0.441,2983.7,2983.4,1.0401]
[1766188875135,0.441,2983.7,2983.3,0.5606]
[1766188875299,0.65298,2983.7,2983.2,1.0401]
[1766188875500,0.586,2983.6,2983.2,1.0401]
[1766188878282,3.3516639,2983.6,2983.0,0.5606]
[1766188878488,0.586,2983.5,2983.0,1.6007]
[1766188879886,0.6096,2983.4,2982.8,0.441]
[1766188880091,1.6821,2983.4,2982.8,2.1116]
[1766188880395,1.6821,2983.4,2982.9,1.0656]
[1766188881796,3.35368513,2983.6,2982.9,0.605]
[1766188881995,4.67789758,2983.6,2983.1,1.0656]
[1766188882332,1.32621245,2983.6,2983.1,1.0656]
[1766188882514,1.32621245,2983.6,2983.1,1.6706]
[1766188882829,0.71661245,2983.6,2983.2,1.6706]
[1766188883014,0.002,2983.6,2983.2,1.6706]
[1766188884136,0.6116,2984.1,2983.6,1.0656]
[1766188884319,1.0745,2984.1,2983.6,1.0656]
[1766188884517,1.6821,2984.0,2983.6,1.0656]
[1766188884728,2.52092332,2984.0,2983.5,0.605]
[1766188885034,2.52092332,2984.0,2983.5,1.6706]
[1766188887143,5.87213981,2984.0,2983.5,1.6706]
[1766188887374,2.52092332,2984.0,2983.5,1.6706]
[1766188887946,1.44842332,2984.0,2983.5,0.605]
[1766188888229,0.002,2984.1,2983.6,1.0656]
[1766188888426,0.002,2984.0,2983.6,1.0656]
[1766188888944,0.002,2984.0,2983.7,1.0656]
[1766188889234,0.002,2984.1,2983.3,9.72442937]
[1766188889451,0.002,2984.1,2983.6,1.0656]
[1766188889631,0.6116,2984.1,2983.6,1.0656]
[1766188889829,0.6096,2984.0,2983.4,1.0656]
[1766188890149,1.6821,2984.0,2983.4,1.0656]
[1766188890349,0.002,2984.1,2983.6,1.0656]
[1766188891464,0.6116,2984.1,2983.6,1.0656]
[1766188891762,0.002,2984.1,2983.6,1.0656]
[1766188891947,0.002,2984.1,2983.5,0.605]
[1766188892248,0.002,2984.1,2983.8,1.0656]
[1766188893527,3.35291042,2984.3,2983.8,1.0656]
[1766188893730,0.002,2984.4,2984.0,0.605]
[1766188893936,0.002,2984.4,2984.1,1.0656]
[1766188894673,4.43336306,2984.4,2983.6,9.72442937]
[1766188894956,0.002,2984.4,2983.7,1.4752]
[1766188895156,0.002,2984.4,2983.8,1.0342]
[1766188895853,0.002,2984.4,2983.9,1.0342]
[1766188896048,0.002,2984.5,2984.2,1.0342]
[1766188897462,0.002,2984.6,2984.2,0.5856]
[1766188897628,0.002,2984.6,2984.3,1.0342]
[1766188898060,0.002,2984.6,2984.4,1.0342]
[1766188900944,0.002,2984.6,2984.3,0.5856]
[1766188901633,0.002,2984.6,2983.5,9.72442937]
[1766188901634,1.6624,2984.5,2983.9,0.441]
[1766188901832,3.35075727,2984.4,2983.9,0.441]
[1766188903036,3.35075727,2984.4,2984.0,1.0342]
[1766188904680,3.35075727,2984.4,2983.6,1.13501245]
[1766188904840,3.35075727,2984.4,2983.7,2.12014418]
[1766188904841,1.6624,2984.3,2983.7,2.12014418]
[1766188905240,1.0806,2984.3,2983.7,1.08594418]
[1766188905448,1.0806,2984.3,2983.6,1.0352]
[1766188905665,1.6624,2984.0,2983.6,0.001]
[1766188906765,3.35131874,2983.9,2983.6,0.001]
[1766188907165,0.5818,2983.5,2982.7,1.0342]
[1766188907343,1.6624,2983.4,2982.8,1.0342]
[1766188908168,1.6624,2983.4,2982.8,1.1652]
[1766188909165,5.01414299,2983.6,2982.9,0.1317]
[1766188909366,5.01414299,2983.6,2983.0,1.0342]
[1766188910170,5.01414299,2983.6,2983.0,1.1666]
[1766188910475,3.35174299,2983.6,2983.1,0.1324]
[1766188910765,3.35174299,2983.6,2983.5,0.001]
[1766188911268,0.74794009,2983.6,2983.5,0.001]
[1766188912076,3.35154338,2983.7,2983.5,0.001]
[1766188912375,0.5818,2983.6,2982.9,0.1347]
[1766188912573,1.6624,2983.6,2983.0,1.0342]
[1766188912968,3.35154338,2983.7,2983.2,1.0342]
[1766188913173,0.5818,2984.0,2983.2,1.0342]
[1766188913361,0.441,2983.9,2983.4,1.1696]
[1766188914052,0.441,2983.9,2983.4,1.0342]
[1766188914368,0.441,2983.9,2983.5,0.136]
[1766188914562,0.441,2983.9,2983.6,1.0342]
[1766188915348,3.79239561,2983.9,2983.6,1.0342]
[1766188918678,3.79239561,2983.9,2983.6,1e-08]
[1766188920263,0.441,2983.9,2983.6,1e-08]
[1766188920478,0.441,2983.9,2983.6,0.13990001]
[1766188920974,3.93278863,2984.2,2983.6,0.13990001]
[1766188920975,3.35098863,2984.2,2983.6,0.1399]
[1766188921189,3.3526893,2984.5,2983.7,0.03351543]
[1766188921388,3.3526893,2984.5,2983.8,0.97579448]
[1766188921691,0.002,2984.6,2983.8,0.97579448]
[1766188923280,0.002,2984.6,2983.9,0.441]
[1766188925090,0.002,2984.6,2983.8,0.97579448]
[1766188925384,1.6406,2984.6,2983.9,0.441]
[1766188925571,1.6386,2984.4,2983.8,0.441]
[1766188925969,1.6386,2984.4,2983.7,0.441]
[1766188926685,4.98946955,2984.3,2983.7,0.441]
[1766188927406,6.7017391,2984.3,2983.5,0.001]
[1766188927590,1.0436,2983.8,2983.5,0.001]
[1766188927896,1.6386,2983.8,2983.5,0.001]
[1766188929294,4.99014192,2983.8,2983.5,0.001]
[1766188929896,1.0436,2983.7,2983.0,0.001]
[1766188930068,1.6386,2983.6,2983.1,0.441]
[1766188930387,1.0436,2983.0,2982.4,0.001]
[1766188930575,1.6386,2982.3,2981.8,0.001]
[1766188930777,9.72348286,2982.3,2981.8,0.001]
[1766188930987,0.595,2982.2,2981.8,0.001]
[1766188931200,0.595,2982.3,2981.8,0.001]
[1766188931400,4.9919416,2982.1,2981.8,0.001]
[1766188931703,1.6386,2982.1,2981.8,0.001]
[1766188932283,4.99174528,2982.3,2981.8,0.001]
[1766188932484,1.6386,2982.2,2981.8,0.001]
[1766188933300,0.442,2982.9,2981.8,0.001]
[1766188933467,0.595,2982.3,2981.8,1.26661629]
[1766188933670,1.6386,2982.2,2981.8,0.001]
[1766188935385,0.442,2982.5,2981.6,0.001]
[1766188935584,1.0436,2982.2,2981.6,0.001]
[1766188935786,1.6386,2982.0,2981.6,0.001]
[1766188937971,0.442,2982.5,2981.6,0.001]
[1766188938173,1.0436,2982.3,2981.4,0.001]
[1766188938389,1.0436,2982.1,2981.4,0.001]
[1766188938590,1.0436,2982.0,2981.4,0.001]
[1766188940309,1.087,2981.8,2981.4,0.001]
[1766188940608,1.5946,2981.8,2981.5,0.001]
[1766188942614,1.5946,2981.8,2981.0,0.442]
[1766188942615,0.442,2982.1,2980.4,0.001]
[1766188942788,0.442,2982.1,2978.4,0.05]
[1766188942789,0.448,2980.8,2979.6,1.0359]
[1766188943110,0.448,2980.8,2978.6,0.17518983]
[1766188943111,10.6958,2978.8,2978.6,0.17518983]
[1766188943291,0.04352557,2979.7,2977.7,0.07446105]
[1766188943292,10.64487575,2978.3,2977.7,0.07446105]
[1766188943487,0.444,2979.3,2976.2,0.003]
[1766188943488,6.24767575,2977.9,2977.0,1.18420316]
[1766188943700,6.24767575,2977.9,2977.0,0.17546582]
[1766188943889,6.24767575,2977.9,2976.8,3.35926711]
[1766188944090,1.31537575,2977.9,2977.0,12.6541629]
[1766188944308,1.5946,2978.4,2977.1,1.71041629]
[1766188944605,2.60363252,2978.4,2977.1,1.71041629]
[1766188944908,2.60363252,2978.4,2977.1,5.06929121]
[1766188945310,2.60363252,2978.4,2977.2,0.445]
[1766188945680,1.087,2978.0,2977.1,1.26541629]
[1766188945877,1.5946,2977.9,2976.5,0.445]
[1766188946082,1.5946,2977.9,2976.8,3.35921043]
[1766188946286,1.087,2977.6,2975.8,3.36034483]
[1766188946483,0.5076,2977.1,2976.0,3.36018864]
[1766188946784,1.5946,2977.1,2976.2,0.33931886]
[1766188946982,1.5946,2977.1,2976.2,0.003]
[1766188947204,3.803615,2977.5,2976.2,0.003]
[1766188947446,0.5076,2977.3,2976.2,12.6571629]
[1766188947616,1.532,2977.5,2976.2,19.37712765]
[1766188947813,1.087,2977.5,2976.2,19.37712765]
[1766188948115,1.087,2976.8,2976.2,0.003]
[1766188948294,1.087,2976.4,2976.2,0.003]
[1766188948492,0.445,2977.0,2975.8,0.001]
[1766188948795,0.03355044,2977.5,2975.8,0.001]
[1766188948796,0.5076,2976.5,2975.8,0.001]
[1766188948993,0.03355044,2976.4,2975.8,0.001]
[1766188949193,0.13462868,2976.9,2975.8,0.001]
[1766188949391,2.0396,2976.8,2975.8,0.001]
[1766188949709,0.13462868,2976.9,2975.9,12.6541629]
[1766188949910,1.087,2977.6,2976.0,1.26551629]
[1766188950110,1.5946,2977.4,2976.1,0.446]
[1766188950315,1.5946,2977.2,2976.2,0.446]
[1766188950698,2.60401277,2977.5,2976.2,0.446]
[1766188950900,1.5946,2977.5,2976.5,3.35965059]
[1766188951105,0.446,2977.7,2976.6,1.60138135]
[1766188951311,1.5946,2977.8,2976.6,1.60138135]
[1766188951686,1.00928712,2978.0,2976.8,12.6541629]
[1766188951918,0.446,2978.6,2976.9,0.446]
[1766188952118,1.5946,2978.4,2976.9,0.446]
[1766188952306,1.00914453,2978.5,2976.9,0.446]
[1766188952501,1.087,2978.4,2976.9,0.446]
[1766188952704,1.5946,2978.3,2976.9,0.446]
[1766188952902,1.5946,2978.3,2977.0,6.71817264]
[1766188953098,1.5946,2978.3,2977.1,0.71641726]
[1766188953920,2.0406,2978.6,2977.1,0.71641726]
[1766188954820,0.8386,2978.4,2977.2,0.446]
[1766188955019,0.8386,2978.0,2977.2,0.446]
[1766188955223,2.0757,2978.0,2977.3,0.45213686]
[1766188957315,1.2371,2978.2,2977.3,0.45213686]
[1766188957530,0.8386,2977.9,2977.1,0.446]
[1766188957829,2.0757,2978.0,2977.1,3.80497302]
[1766188958123,1.2371,2977.8,2977.1,3.80497302]
[1766188958323,2.0757,2977.8,2977.1,0.446]
[1766188959012,2.0757,2977.8,2977.2,0.3805084]
[1766188961102,2.0757,2977.8,2977.2,3.7393542]
[1766188961302,2.0757,2977.8,2977.3,0.446]
[1766188963231,1.00920224,2978.4,2977.3,3.80474234]
[1766188963611,1.2371,2978.3,2977.3,3.80474234]
[1766188963810,1.00920224,2978.4,2977.3,3.80474234]
[1766188963811,2.0757,2978.1,2977.4,0.41852507]
[1766188964921,0.8386,2978.4,2977.4,0.41852507]
[1766188965221,2.0757,2978.4,2977.5,3.35852225]
[1766188965624,2.0757,2978.4,2977.5,6.7170445]
[1766188965927,2.0757,2978.7,2977.5,6.7170445]
[1766188966120,2.0757,2978.7,2977.6,0.71355696]
[1766188966428,2.0757,2978.7,2977.7,0.446]
[1766188967329,2.0757,2978.7,2977.8,6.71636778]
[1766188967534,2.0757,2978.7,2977.8,3.35818389]
[1766188967731,0.03355044,2978.6,2977.7,3.80428093]
[1766188967937,2.0757,2978.5,2977.8,0.89678379]
[1766188969703,2.0757,2978.5,2977.8,4.25496285]
[1766188970133,2.0757,2978.5,2977.8,3.80996285]
[1766188970434,2.0757,2978.5,2977.9,0.445]
[1766188971012,2.0777,2978.7,2977.9,0.445]
[1766188971219,2.0777,2978.7,2978.0,0.42549629]
[1766188971932,2.0777,2978.7,2978.0,3.78343489]
[1766188972136,0.002,2978.7,2978.0,3.78343489]
[1766188972834,3.35638969,2979.4,2978.0,7.14139325]
[1766188973018,0.405504,2979.9,2978.1,13.41280223]
[1766188973019,1.2371,2979.2,2978.1,13.41280223]
[1766188974024,1.2371,2979.2,2978.2,6.7154657]
[1766188974337,1.2371,2979.2,2978.3,0.445]
[1766188974840,1.2371,2978.8,2978.1,0.75863933]
[1766188975006,0.8386,2978.9,2977.2,12.6541629]
[1766188975211,0.8386,2978.9,2977.0,0.001]
[1766188975212,1.2371,2978.4,2977.0,0.001]
[1766188975430,2.0757,2978.3,2977.3,0.445]
[1766188975933,2.0757,2978.3,2977.5,3.35845479]
[1766188976242,3.35716211,2978.8,2977.4,3.35863505]
[1766188976434,4.07307071,2978.8,2977.5,0.71623809]
[1766188976633,2.0757,2978.5,2977.5,0.71623809]
[1766188977507,0.7159086,2978.8,2977.5,0.71623809]
[1766188977738,2.0757,2978.9,2977.5,0.71623809]
[1766188978439,2.0757,2978.9,2977.6,6.7168189]
[1766188978628,2.0757,2978.9,2977.7,0.446]
[1766188980410,0.445,2979.0,2977.8,6.71636778]
[1766188980607,2.0757,2979.1,2977.8,6.71636778]
[1766188980837,2.0757,2979.1,2977.9,1.05206161]
[1766188981042,0.002,2979.2,2977.9,1.05206161]
[1766188981251,2.0757,2979.1,2977.9,1.05206161]
[1766188982955,2.0757,2979.1,2978.0,6.71591672]
[1766188983322,0.002,2979.2,2978.0,6.71591672]
[1766188983553,0.002,2979.2,2978.1,0.77679783]
[1766188983859,0.002,2979.2,2978.2,0.445]
[1766188984524,0.002,2979.2,2978.3,3.35762011]
[1766188988130,0.002,2979.2,2978.3,6.71524022]
[1766188988543,0.04352557,2980.1,2978.3,6.71524022]
[1766188988544,2.2333,2979.6,2978.3,6.71524022]
[1766188988755,2.2333,2979.9,2978.4,13.70595604]
[1766188989426,3.35571244,2980.0,2978.4,1.05179314]
[1766188989754,2.2333,2979.8,2978.4,1.05179314]
[1766188990626,2.2333,2979.8,2978.5,6.71478932]
[1766188990930,2.2333,2979.8,2978.6,0.445]
[1766188991129,2.2333,2979.8,2978.7,0.71597893]
[1766188992732,2.2333,2979.8,2978.8,3.35705653]
[1766188994550,2.2333,2979.8,2978.9,0.445]
[1766188994856,2.2333,2979.8,2979.0,0.445]
[1766188995065,2.2353,2979.8,2979.0,0.445]
[1766188995231,2.2353,2979.8,2978.8,3.35705653]
[1766188995571,2.2353,2979.8,2978.9,0.85230355]
[1766188997869,0.002,2979.8,2978.9,4.20924665]
[1766188998035,2.2333,2979.7,2978.9,4.20924665]
[1766189000039,0.002,2979.8,2978.9,4.20924665]
[1766189000236,2.2333,2979.7,2978.9,4.20924665]
[1766189001267,2.2333,2979.6,2979.0,0.445]
[1766189001568,2.2333,2979.4,2979.0,0.445]
[1766189002769,2.2333,2979.4,2978.7,3.35705843]
[1766189002977,0.002,2979.8,2979.0,3.35683115]
[1766189003268,0.002,2979.8,2979.1,0.33568312]
[1766189003768,0.002,2979.7,2979.1,0.33568312]
[1766189004451,0.002,2979.7,2979.2,0.445]
[1766189004651,0.002,2979.8,2979.2,0.445]
[1766189005569,2.6783,2980.3,2979.2,0.445]
[1766189005770,2.6783,2980.3,2979.3,0.74940453]
[1766189005971,2.2333,2980.2,2979.3,0.74940453]
[1766189006177,2.26685044,2980.2,2979.3,0.74940453]
[1766189006793,2.26685044,2980.2,2979.3,4.10589046]
[1766189007683,2.2333,2980.1,2979.3,4.10589046]
[1766189007972,2.2333,2980.1,2979.4,0.45508905]
[1766189008872,0.445,2980.3,2979.4,3.8114543]
[1766189009057,2.40085044,2980.4,2979.4,3.8114543]
[1766189009651,2.3653,2980.3,2979.4,3.8114543]
[1766189011688,0.002,2980.2,2979.4,3.8114543]
[1766189011854,0.002,2980.2,2979.5,0.38114543]
[1766189012055,0.002,2980.2,2979.6,0.444]
[1766189022987,0.002,2980.2,2979.5,0.38114543]
[1766189023195,0.002,2980.2,2979.7,0.444]
[1766189035103,0.002,2980.4,2979.7,0.444]
[1766189035598,0.002,2980.4,2979.8,0.3800108]
[1766189035899,2.3799,2980.3,2979.7,0.444]
[1766189036702,2.3799,2980.3,2979.5,0.38214543]
[1766189036703,2.3799,2980.2,2979.5,0.38214543]
[1766189036999,0.002,2980.4,2979.7,0.444]
[1766189037405,2.3819,2980.4,2979.7,0.444]
[1766189040305,0.002,2980.4,2979.7,0.444]
[1766189040607,0.002,2980.4,2979.8,0.3800154]
[1766189041107,2.8239,2980.8,2979.8,0.3800154]
[1766189041406,0.03355044,2980.7,2979.8,0.3800154]
[1766189041784,0.002,2980.4,2979.8,0.3800154]
[1766189042004,6.17876367,2980.8,2979.8,0.3800154]
[1766189042005,0.444,2980.8,2979.8,0.3800154]
[1766189042200,0.444,2980.8,2979.9,0.41800309]
[1766189043908,2.3799,2980.9,2979.9,0.41800309]
[1766189044086,3.35661479,2981.0,2979.9,0.41800309]
[1766189044283,0.002,2981.0,2979.9,3.77379854]
[1766189044809,2.5351,2981.0,2979.9,3.77379854]
[1766189045027,2.5351,2981.0,2980.0,0.41538139]
[1766189045210,2.5351,2981.0,2980.1,0.444]
[1766189046809,0.002,2981.0,2980.1,0.444]
[1766189047616,5.88971931,2981.0,2980.1,0.444]
[1766189047915,0.03355044,2980.9,2980.1,0.444]
[1766189048618,0.6306,2980.7,2980.1,1.43777225]
[1766189048909,2.5331,2980.5,2980.0,0.444]
[1766189049992,0.444,2980.8,2980.0,0.444]
[1766189050193,2.5331,2980.7,2980.0,0.444]
[1766189050517,0.444,2980.8,2980.0,0.444]
[1766189050700,0.002,2980.5,2980.0,0.444]
[1766189051794,2.5351,2980.5,2980.0,0.444]
[1766189053398,0.002,2980.5,2980.0,0.444]
[1766189058122,2.5351,2980.5,2980.0,0.444]
[1766189058924,2.5351,2980.5,2979.6,0.001]
[1766189058925,2.5331,2980.0,2979.6,0.001]
[1766189060731,13.09954986,2980.2,2979.6,0.001]
[1766189060908,0.6306,2980.0,2979.6,0.001]
[1766189063512,2.5331,2979.9,2979.6,0.001]
[1766189063808,13.10383866,2980.2,2979.6,0.001]
[1766189064009,2.5331,2979.9,2979.6,0.001]
[1766189065709,3.35538765,2980.3,2979.6,0.001]
[1766189065914,1.9025,2980.2,2979.6,0.001]
[1766189066228,2.5331,2980.1,2979.6,0.001]
[1766189066408,2.5331,2980.2,2979.6,0.001]
[1766189066720,0.63314876,2980.2,2979.6,0.001]
[1766189066927,2.5331,2980.1,2979.6,0.001]
[1766189067239,6.71118418,2980.1,2979.6,0.001]
[1766189067436,2.6327,2979.9,2979.6,0.001]
[1766189067597,9.74834466,2980.0,2979.6,0.001]
[1766189067801,2.6327,2979.9,2979.6,0.001]
[1766189072818,1.37370855,2980.0,2979.6,0.001]
[1766189073133,2.6327,2979.9,2979.6,0.001]
[1766189074110,1.9856,2979.8,2979.6,0.001]
[1766189074335,2.5522,2979.8,2979.6,0.001]
[1766189080639,3.35772723,2980.0,2979.6,0.001]
[1766189080823,0.33577272,2979.9,2979.6,0.001]
[1766189081135,2.88797272,2979.9,2979.6,0.001]
[1766189086240,0.33577272,2979.9,2979.6,0.001]
[1766189086444,2.88797272,2979.9,2979.6,0.001]
[1766189088625,3.89649642,2979.9,2979.6,0.001]
[1766189089444,7.25231875,2979.9,2979.6,0.001]
[1766189089624,2.5522,2979.8,2979.6,0.001]
[1766189092740,2.5522,2979.8,2979.5,0.001]
[1766189093046,2.5522,2979.8,2979.0,0.443]
[1766189093230,1.9856,2979.8,2979.0,1.81609221]
[1766189093436,2.5522,2979.7,2979.0,1.81609221]
[1766189096220,2.9952,2979.9,2979.0,1.81609221]
[1766189096845,6.35103618,2979.9,2979.0,1.81609221]
[1766189097016,3.79883618,2979.9,2979.0,1.81609221]
[1766189097220,1.9856,2979.7,2979.0,1.81609221]
[1766189097442,2.5522,2979.6,2979.0,1.81609221]
[1766189098449,2.5522,2979.6,2979.0,1.81709221]
[1766189099956,3.35605807,2979.7,2979.0,1.81709221]
[1766189100162,0.002,2979.8,2979.0,1.81709221]
[1766189100163,2.5522,2979.5,2979.0,1.81709221]
[1766189100448,2.5522,2979.5,2979.0,0.444]
[1766189102055,3.80078782,2980.0,2979.4,9.92886579]
[1766189102056,0.002,2980.0,2979.4,9.92886579]
[1766189102562,0.002,2980.0,2979.0,10.37286579]
[1766189102563,2.5542,2980.0,2979.0,10.37286579]
[1766189102770,2.5542,2980.0,2979.1,1.41747793]
[1766189102923,3.35772659,2980.0,2979.1,1.41747793]
[1766189103122,2.5522,2979.9,2979.1,1.41747793]
[1766189105260,0.002,2979.8,2979.1,1.41747793]
[1766189106262,0.002,2980.0,2979.3,9.92886579]
[1766189107730,2.5985,2980.0,2979.3,9.92886579]
[1766189108579,2.5985,2980.0,2979.4,0.443]
[1766189111968,2.5965,2979.9,2979.2,1.51471725]
[1766189112153,0.523,2979.7,2979.2,1.51471725]
[1766189112353,0.523,2979.7,2979.0,0.001]
[1766189112354,2.5965,2979.5,2979.0,0.001]
[1766189112553,2.5965,2979.5,2979.0,0.444]
[1766189119878,3.80085019,2979.9,2979.0,0.444]
[1766189120100,2.5965,2979.8,2979.0,0.444]
[1766189120383,3.80085019,2979.9,2979.0,0.444]
[1766189120554,0.523,2979.6,2979.0,0.444]
[1766189120881,2.5965,2979.5,2979.0,0.444]
[1766189126455,4.11622222,2979.8,2979.0,0.444]
[1766189126660,2.5965,2979.7,2979.0,0.444]
[1766189127886,0.5012,2979.6,2979.0,0.444]
[1766189128061,2.6711,2979.4,2979.0,0.444]
[1766189135399,0.002,2979.8,2979.0,3.80077194]
[1766189135699,0.442,2980.3,2979.1,0.71586881]
[1766189136201,3.0802,2980.3,2979.1,1.15986881]
[1766189137501,6.43558108,2980.3,2979.1,4.07251767]
[1766189137699,6.43558108,2980.3,2979.2,1.78048121]
[1766189138601,3.0802,2980.3,2979.2,1.78048121]